Cogmind - Beta 12 @@@ ROGUE MODE // 2023.04.10 @ 06:19:18 // AFD2020/Player2 Player: Benkyo Result: Core destroyed Performance ------------- Evolutions (2) 1000 Regions Visited (5) 1000 Robots Destroyed (29) 145 Value Destroyed (847) 847 Prototype IDs (10) 200 Alien Tech Used (0) 0 Bonus (631) 631 TOTAL SCORE: 3823 Bonus ------- Follower Combat Kills 715 Friendly Fire -84 Cogmind --------- Core Integrity 0/550 Matter 222/300 Energy 278/290 System Corruption 1% Temperature Cool (0) Movement Rolling (190) Ox6 Location -8/Materials Parts ------- > --- POWER (1) -------- Improved Deuterium Engine > --- PROPULSION (2) --- Compact Wheel > --- UTILITY (6) ------ Huge Storage Unit Advanced Targeting Computer Improved Medium Armor Plating Medium Reflective Plating Hacking Suite Hacking Suite > --- WEAPON (2) ------- Grenade Launcher Rocket Launcher > --- INVENTORY (25) --- Improved Deuterium Engine Light Treads Light Treads Coolant Injector Coolant Injector Coolant Injector Coolant Injector High-capacity Matter Pod (200) Improved Sensor Array Experimental Sensor Array Improved Terrain Scanner Matter Filter Energy Filter Insulated Plating Component Analysis Suite Improved Trap Extractor (1/6 Dirty Bomb) Beamcaster Light EM Pulse Cannon EM Pulse Cannon Plasma Cannon Plasma Cannon Improved Light Cannon Improved Light Cannon Remote Datajack Axe Peak State ------------ > --- POWER ------------ Improved Deuterium Engine > --- PROPULSION ------- Compact Wheel Compact Wheel > --- UTILITY ---------- Coolant Injector Huge Storage Unit Matter Filter Improved Medium Armor Plating Medium Reflective Plating Hacking Suite > --- WEAPON ----------- Improved Light Cannon Improved Light Cannon > --- INVENTORY -------- Improved Deuterium Engine Light Angular Momentum Engine Light Treads Light Treads Improved Titanium Leg Coolant Injector Large Storage Unit High-capacity Matter Pod Improved Sensor Array Experimental Sensor Array Improved Terrain Scanner Energy Filter Hacking Suite Component Analysis Suite Improved Trap Extractor Advanced Beam Rifle Beamcaster Light EM Pulse Cannon Light EM Pulse Cannon Light EM Pulse Cannon Plasma Cannon Plasma Cannon Grenade Launcher Rocket Launcher Remote Datajack [Rating: 38] Favorites ----------- Power Ion Engine Engine Ion Engine Propulsion Light Treads Treads Light Treads Wheel Compact Wheel Utility Large Storage Unit Device Seismic Detector Storage Large Storage Unit Processor Advanced Targeting Computer Hackware Hacking Suite Protection Improved Medium Armor Plating Weapon Assault Rifle Ballistic Gun Assault Rifle Ballistic Cannon Improved Light Cannon Launcher Grenade Launcher Build | -11 -10 -10 -10 -9 -8 ------- Run | Jun Mat Min Exi Min Mat Slots Evolved 4 | . . . . . 4 Power . | . . . . . . Propulsion . | . . . . . . Utility 4 | . . . . . 4 Weapon . | . . . . . . Parts Attached 33 | 7 7 . . 11 8 Power 3 | 1 1 . . 1 . Engine 3 | 1 1 . . 1 . Core . | . . . . . . Reactor . | . . . . . . Propulsion 4 | 2 . . . 2 . Treads 2 | 2 . . . . . Leg . | . . . . . . Wheel 2 | . . . . 2 . Hover . | . . . . . . Flight . | . . . . . . Utility 15 | 2 1 . . 6 6 Device 5 | 1 . . . 2 2 Storage 3 | 1 1 . . 1 . Processor 1 | . . . . . 1 Hackware 2 | . . . . . 2 Protection 4 | . . . . 3 1 Artifact . | . . . . . . Weapon 11 | 2 5 . . 2 2 Energy Gun . | . . . . . . Energy Cannon . | . . . . . . Ballistic Gun 4 | 2 2 . . . . Ballistic Cannon 4 | . 2 . . 2 . Launcher 3 | . 1 . . . 2 Special Weapon . | . . . . . . Impact Weapon . | . . . . . . Slashing Weapon . | . . . . . . Piercing Weapon . | . . . . . . Special Melee Weapon . | . . . . . . Unidentified Prototypes . | . . . . . . Parts Lost . | . . . . . . Power . | . . . . . . Propulsion . | . . . . . . Utility . | . . . . . . Weapon . | . . . . . . Highest Loss Streak . | . . . . . . To Critical Strikes . | . . . . . . Average Slot Usage (%) 99 | . 100 100 100 100 96 Engine 12 | . 14 14 14 14 9 Treads 21 | . 28 28 28 25 . Wheel 4 | . . . . 2 17 Device 9 | . 14 14 14 1 9 Storage 12 | . 14 14 14 14 9 Processor 1 | . . . . . 6 Hackware 2 | . . . . . 9 Protection 7 | . . . . 12 18 Ballistic Gun 14 | . 27 28 28 2 . Ballistic Cannon 10 | . . . . 25 18 Naked Turns . | . . . . . . Heaviest Build 116 | 15 31 30 30 105 116 Greatest Support 40 | 40 40 40 40 40 32 Greatest Overweight (x) 6 | 2 . . . 6 6 Average Overweight (x) . | . . . . . 3 Largest Inventory Capacity 25 | 8 15 15 15 25 25 Average Capacity 16 | 7 13 15 15 16 25 Most Carried 25 | 8 15 15 15 25 25 Average Carried 16 | 4 9 14 15 15 24 Final Capacity 25 | 8 15 15 15 25 25 Final Carried 25 | 8 15 15 15 25 25 Class Distribution -------------------- 98% | Mutant Dominant Class ---------------- Mutant | -10/Materials Mutant | -10/Mines Mutant | -10/Exiles Mutant | -9/Mines Mutant | -8/Materials Resources | -11 -10 -10 -10 -9 -8 ----------- Run | Jun Mat Min Exi Min Mat Matter Collected 1237 | 300 437 89 . 177 234 Remotely . | . . . . . . Salvage Created 1050 | 89 406 74 . 240 241 Parts 65 | 7 23 8 . 13 14 Haulers Intercepted 1 | . 1 . . . . Recyclers Shooed . | . . . . . . Parts Field Recycled . | . . . . . . Retrieved Matter . | . . . . . . Parts Self-Destructed . | . . . . . . Prevented . | . . . . . . Kills | -11 -10 -10 -10 -9 -8 ------- Run | Jun Mat Min Exi Min Mat Combat Hostiles Destroyed 18 | . 6 1 . 3 8 Guns 7 | . 6 1 . . . Cannons 11 | . . . . 3 8 Classes Destroyed 8 | 2 5 1 . . . Builder 2 | . 1 1 . . . Tunneler 2 | 1 . . . 1 . Hauler 1 | . 1 . . . . Recycler 4 | 1 1 . . 2 . Watcher 2 | . 2 . . . . Swarmer 1 | . 1 . . . . Grunt 14 | . 5 . . 3 6 Sentry 3 | . . 1 . . 2 Best Kill Streak 4 | 2 4 1 . 2 3 Combat Bots Only 4 | . 4 1 . 2 3 Max Kills in Single Turn 2 | 1 1 1 . 2 1 Gunslinging . | . . . . . . Exploded . | . . . . . . Melee . | . . . . . . Uniques/NPCs Destroyed . | . . . . . . Combat | -11 -10 -10 -10 -9 -8 -------- Run | Jun Mat Min Exi Min Mat Damage Taken 746 | . 319 39 . 48 340 Core 120 | . 40 12 . 22 46 Absorbed by Shields . | . . . . . . Regen/Repaired (Parts) 88 | . 88 . . . . Core Remaining (%) 62 | 100 . . . 24 . Volleys Fired 103 | 5 37 6 . 7 48 Largest 2 | 2 2 2 . 2 2 Hottest 78 | 40 40 40 . 78 78 Shots Fired 203 | 10 73 12 . 14 94 Gun 94 | 10 72 12 . . . Cannon 108 | . . . . 14 94 Launcher 1 | . 1 . . . . Special . | . . . . . . Kinetic 202 | 10 72 12 . 14 94 Thermal . | . . . . . . Explosive 1 | . 1 . . . . Electromagnetic . | . . . . . . Robot Hit Streak 19 | 4 9 6 . 12 19 Robot Miss Streak 3 | 1 3 1 . 1 3 Penetration Max . | . . . . . . Secondary Targets 1 | . 1 . . . . Max Gunslinging Chain 1 | . 1 . . . . Shots Hit Robots 130 | 7 48 9 . 9 57 Core Hits 49 | 3 20 3 . 7 16 Critical Kills . | . . . . . . Critical Parts Destroyed 1 | . 1 . . . . Critical Strikes 6 | . 1 . . . 5 Destroy 1 | . 1 . . . . Blast 5 | . . . . . 5 Melee Attacks . | . . . . . . Impact . | . . . . . . Slashing . | . . . . . . Piercing . | . . . . . . Sneak Attacks . | . . . . . . Combat Hostiles . | . . . . . . Follow-up Attacks . | . . . . . . Damage Inflicted 2339 | 89 634 109 . 235 1272 Guns 832 | 89 634 109 . . . Cannons 1507 | . . . . 235 1272 Explosions . | . . . . . . Melee . | . . . . . . Ramming . | . . . . . . Kinetic 2339 | 89 634 109 . 235 1272 Thermal . | . . . . . . Explosive . | . . . . . . Electromagnetic . | . . . . . . Impact . | . . . . . . Slashing . | . . . . . . Piercing . | . . . . . . Highest Corruption 1 | . . . . . 1 Average Corruption 1 | . . . . . 1 Corruption Purged . | . . . . . . Corruption Blocked . | . . . . . . Effects 7 | . . . . . 7 Message Errors 2 | . . . . . 2 Matter Fused 2 | . . . . . 2 Energy Discharges 1 | . . . . . 1 Parts Rejected 1 | . . . . . 1 Data Loss (major) 1 | . . . . . 1 Overload Shots . | . . . . . . Overflow Damage 42 | . . . . 4 38 Projectiles 42 | . . . . 4 38 Explosions . | . . . . . . Melee . | . . . . . . Knockbacks 14 | . . . . 3 11 Impact . | . . . . . . Kinetic 13 | . . . . 3 10 Secondary 1 | . . . . . 1 Self-Inflicted Damage . | . . . . . . Shots . | . . . . . . Rammed . | . . . . . . Targets Rammed . | . . . . . . Kicked . | . . . . . . Crushed . | . . . . . . Highest Temperature 252 | . 11 2 . 84 252 Average Temperature 63 | . 5 2 . 34 68 Received Heat Transfer 312 | . 114 9 . 42 147 Siege Activations . | . . . . . . Robots Corrupted . | . . . . . . Combat Hostiles . | . . . . . . Parts Fried . | . . . . . . Impact Corruptions . | . . . . . . Robots Melted . | . . . . . . Combat Hostiles . | . . . . . . Parts Melted . | . . . . . . Heat Transferred . | . . . . . . Parts Sabotaged . | . . . . . . Parts Stolen . | . . . . . . Parts Stripped . | . . . . . . Power Chain Reactions . | . . . . . . Missiles Intercepted . | . . . . . . Alert | -11 -10 -10 -10 -9 -8 ------- Run | Jun Mat Min Exi Min Mat Peak Influence 530 | 10 530 175 . 87 360 Initial 169 | . 6 169 . . 1 Average 142 | 4 306 98 . 38 156 Maximum Alert Level 2 | . 2 . . . 1 Low Security (%) 72 | 100 29 100 . 100 53 Level 1 22 | . 47 . . . 46 Level 2 5 | . 23 . . . . Level 3 . | . . . . . . Level 4 . | . . . . . . Level 5 . | . . . . . . High Security . | . . . . . . Max Security . | . . . . . . Squads Dispatched 15 | . 5 . . 1 9 Investigation 8 | . 3 . . 1 4 Extermination . | . . . . . . Reinforcement 6 | . 2 . . . 4 Assault . | . . . . . . Garrison 1 | . . . . . 1 Intercept . | . . . . . . Searches Triggered . | . . . . . . Construction Impeded 1 | . . . . . 1 Haulers Reinforced . | . . . . . . Active Scanning Responses . | . . . . . . Cargo Convoy Interrupts . | . . . . . . Stealth | -11 -10 -10 -10 -9 -8 --------- Run | Jun Mat Min Exi Min Mat Distress Signals 1 | . . . . . 1 Communications Jammed . | . . . . . . Distress Signals . | . . . . . . Times Spotted 69 | . 28 3 . 5 33 Peak Tracking Total 8 | . 7 3 . 3 8 Tactical Retreats . | . . . . . . Traps | -11 -10 -10 -10 -9 -8 ------- Run | Jun Mat Min Exi Min Mat Traps Triggered 2 | . 1 . . . 1 Indirectly . | . . . . . . Trap Hack Attempts . | . . . . . . Triggered . | . . . . . . Disarmed . | . . . . . . Reprogrammed . | . . . . . . Reused . | . . . . . . Traps Extracted 1 | . . . . 1 . Installed . | . . . . . . Triggered 1 | . . . . 1 . Most Traps Carried 1 | . . . . 1 1 Machines | -11 -10 -10 -10 -9 -8 ---------- Run | Jun Mat Min Exi Min Mat Machines Disabled 7 | . 3 2 . 1 1 Max in Single Turn 1 | . 1 1 . 1 1 Garrison Access 1 | . . . . . 1 Machines Repaired . | . . . . . . Machines Sabotaged . | . . . . . . Overloaded Fab Kills . | . . . . . . Hacking | -11 -10 -10 -10 -9 -8 --------- Run | Jun Mat Min Exi Min Mat Machines Accessed 24 | . 10 . 1 2 11 Terminals 16 | . 7 . . . 9 Fabricators . | . . . . . . Repair Stations 1 | . 1 . . . . Recycling Units 2 | . 2 . . . . Scanalyzers 1 | . . . . . 1 Garrison Access 1 | . . . . . 1 Total Hacks 75 | . 30 . 1 2 42 Successful 41 | . 17 . 1 2 21 Failed 32 | . 12 . . . 20 Catastrophic 2 | . 1 . . . 1 Database Lockouts 2 | . 1 . . . 1 Manual 36 | . 20 . . . 16 Terminals 58 | . 22 . . . 36 Fabricators . | . . . . . . Repair Stations 2 | . 2 . . . . Recycling Units 6 | . 6 . . . . Scanalyzers 4 | . . . . . 4 Garrison Access 2 | . . . . . 2 Terminal Hacks 27 | . 8 . 1 2 16 Record 1 | . . . 1 . . Part Schematic 1 | . 1 . . . . Robot Analysis 6 | . 3 . . . 3 Prototype ID Bank 5 | . 2 . . . 3 Open Door 2 | . . . . 2 . Emergency Access Points 2 | . . . . . 2 Alert Level 1 | . 1 . . . . Locate Traps 3 | . . . . . 3 Hauler Manifests 2 | . . . . . 2 Registered Components 1 | . . . . . 1 Zone Layout 3 | . 1 . . . 2 Fabricator Hacks . | . . . . . . Repair Station Hacks 2 | . 2 . . . . Scan Component 1 | . 1 . . . . Repair 1 | . 1 . . . . Recycling Unit Hacks 2 | . 2 . . . . Retrieve Components 2 | . 2 . . . . Scanalyzer 2 | . . . . . 2 Insert Component 1 | . . . . . 1 Analyze 1 | . . . . . 1 Garrison Access Hacks 1 | . . . . . 1 Seal Access 1 | . . . . . 1 Unauthorized Hacks 7 | . 5 . . . 2 Terminals 5 | . 3 . . . 2 Assimilate 1 | . 1 . . . . Botnet 3 | . 1 . . . 2 Operators 1 | . 1 . . . . Fabricators . | . . . . . . Repair Stations . | . . . . . . Recycling Units 2 | . 2 . . . . Tunnel 2 | . 2 . . . . Scanalyzers . | . . . . . . Garrison Access . | . . . . . . Data Cores Recovered 1 | . 1 . . . . Used . | . . . . . . Hacking Detections 19 | . 9 . . . 10 Full Trace Events 2 | . . . . . 2 Feedback Events . | . . . . . . Feedback Blocked . | . . . . . . Robot Schematics Acquired . | . . . . . . Robots Built . | . . . . . . Authchips . | . . . . . . Time . | . . . . . . Total Robot Build Rating . | . . . . . . Part Schematics Acquired 1 | . 1 . . . . Parts Built . | . . . . . . Authchips . | . . . . . . Time . | . . . . . . Total Part Build Rating . | . . . . . . Parts Repaired 1 | . 1 . . . . Time 26 | . 26 . . . . Parts Recycled . | . . . . . . Recycled Matter . | . . . . . . Retrieved Matter . | . . . . . . Retrieved Components 11 | . 11 . . . . Parts Scanalyzed 1 | . . . . . 1 Part Schematics Acquired . | . . . . . . Parts Damaged . | . . . . . . Bothacking | -11 -10 -10 -10 -9 -8 ------------ Run | Jun Mat Min Exi Min Mat Used RIF Installer . | . . . . . . Robots Hacked . | . . . . . . Non-combat . | . . . . . . Combat . | . . . . . . Robot Hacks Applied . | . . . . . . Relay Couplers Released . | . . . . . . Fabnet Peak Effective % . | . . . . . . Robots Rewired . | . . . . . . Allies Hacked . | . . . . . . Hacks Repelled . | . . . . . . Allies | -11 -10 -10 -10 -9 -8 -------- Run | Jun Mat Min Exi Min Mat Total Allies 1 | . 1 . . . . Largest Group 1 | . 1 1 1 1 1 Highest-Rated Group 83 | . 60 60 60 67 83 Highest-Rated Ally 83 | . 60 60 60 67 83 Total Orders . | . . . . . . Ally Attacks 119 | . 40 7 . 2 70 Total Damage 2618 | . 882 187 . 107 1442 Kills 32 | . 13 4 . 2 13 Allies Corrupted . | . . . . . . Allies Melted . | . . . . . . Intel | -11 -10 -10 -10 -9 -8 ------- Run | Jun Mat Min Exi Min Mat Robot Analysis Total 6 | . 3 . . . 3 Derelict Logs Recovered 2 | . . 1 . 1 . Drone Launches . | . . . . . . Drone Recoveries . | . . . . . . Exploration | -11 -10 -10 -10 -9 -8 ------------- Run | Jun Mat Min Exi Min Mat Turns Passed 5415 | 127 1167 1012 508 1425 1176 Spaces Moved 2972 | 63 595 593 318 738 665 Core 11 | 11 . . . . . Treads 2197 | 52 595 593 318 639 . Legs . | . . . . . . Wheels 764 | . . . . 99 665 Hover . | . . . . . . Flight . | . . . . . . Fastest Speed 50 | 50 160 160 160 130 145 Average Speed 156 | 147 160 160 160 160 146 Slowest Speed 240 | 160 160 160 160 240 190 Overloaded Moves . | . . . . . . Propulsion Burnouts . | . . . . . . Robots Hopped . | . . . . . . Cave-ins Triggered . | . . . . . . Exploration Rate (%) 71 | 6 99 96 67 96 64 Regions Visited 5 Branch Regions 3 Pre-discovered Areas 4 | . 2 1 1 . . Known Exits Taken 1 | . . . . 1 . Unknown Exits Taken 4 | 1 1 1 1 . . Scrap Searched 1 | . . 1 . . . Spaces Dug 4 | . . . . . 4 Terrain Destroyed 16 | . 8 . . . 8 Melee . | . . . . . . Projectile 8 | . . . . . 8 AOE 8 | . 8 . . . . Terrain Rammed . | . . . . . . Walls Destroyed . | . . . . . . Machines Disabled . | . . . . . . Actions | -11 -10 -10 -10 -9 -8 --------- Run | Jun Mat Min Exi Min Mat Total 3528 | 84 739 645 317 965 778 Wait 338 | 2 79 43 . 184 30 Move 2967 | 62 594 592 317 737 665 Hop . | . . . . . . Pick Up 55 | 8 14 2 . 16 15 Fast Attach 10 | 7 . . . 2 1 Attach 4 | . 1 . . . 3 Detach 1 | . . . . 1 . Swap 19 | . 6 . . 9 4 Drop 31 | . 8 2 . 9 12 Fire 103 | 5 37 6 . 7 48 Melee . | . . . . . . Ram . | . . . . . . Kick . | . . . . . . Crush . | . . . . . . Escape Stasis . | . . . . . . Rewire . | . . . . . . Trap . | . . . . . . Miscellaneous . | . . . . . . Route ------- -11/Junkyard -10/Materials (discovered 4 exits: [*Mat x3] / [*Min]) -10/Mines (discovered 3 exits: [*Mat x2] / *Exi) -10/Exiles -9/Mines (discovered 2 exits: *Mat x2) -8/Materials (discovered 3 exits: *Fac x2 / [*Sto]) History --------- Turn | Location | Event 6 | -11/Junkyard | Discovered new exit (range 15) 128 | -11/Junkyard | Entered Materials 314 | -10/Materials | Build established: Mutant 533 | -10/Materials | Discovered new exit (range 12) 708 | -10/Materials | Discovered new exit (range 12) 798 | -10/Materials | Repaired Assault Rifle 972 | -10/Materials | Discovered new exit (range 16) 1042 | -10/Materials | Central database locked down 1134 | -10/Materials | Discovered new exit (range 5) 1295 | -10/Materials | Entered Mines 1548 | -10/Mines | Learned location of 1 exit from Materials 1580 | -10/Mines | Deemed a non-threat by the Exiles lab entrance 1580 | -10/Mines | Discovered new exit (range 5) 1818 | -10/Mines | Learned location of Storage (-8) 1873 | -10/Mines | Discovered new exit (range 12) 1978 | -10/Mines | Core integrity fell below 50% 1989 | -10/Mines | Joined a pair of Derelicts in attacking an 0b10 outpost 2028 | -10/Mines | Received a Rocket Launcher from a helpful Derelict 2118 | -10/Mines | Discovered new exit (range 7) 2307 | -10/Mines | Entered Exiles 2346 | -10/Exiles | Met 8R-AWN 2375 | -10/Exiles | Met EX-HEX 2439 | -10/Exiles | Met EX-DEC 2445 | -10/Exiles | Learned location of Zion (-6) 2639 | -10/Exiles | Met EX-BIN 2797 | -10/Exiles | Discovered new exit (range 14) 2815 | -10/Exiles | Entered Mines 2892 | -9/Mines | Identified exit to Materials 2930 | -9/Mines | Met a Derelict shopkeep closing up shop 3009 | -9/Mines | Discovered exit to Materials (range 8) 3116 | -9/Mines | Met a Derelict who couldn't figure out how to use a Trap Extractor 3645 | -9/Mines | Found a damaged Exp. Sensor Array with a note attached 3648 | -9/Mines | Found Prototype Device 3937 | -9/Mines | Identified Exp. Sensor Array 4240 | -9/Mines | Entered Materials 4240 | -8/Materials | Evolved 4 slots: Utility x4 4241 | -8/Materials | Identified exit to Factory 4739 | -8/Materials | Garrison activated, responded to threat 4840 | -8/Materials | Discovered new exit (range 5) 4928 | -8/Materials | Central database locked down 4987 | -8/Materials | Discovered exit to Factory (range 9) 5386 | -8/Materials | Core integrity fell below 50% 5411 | -8/Materials | Core integrity fell below 20% 5416 | -8/Materials | Core destroyed Last Messages --------------- 05341_ Dropped Lgt. EM Pulse Cannon. 05342_ Acquired EM Pulse Cannon. 05347_ ALERT: Hostile activity reported, dispatching reinforcements to area. 05362_ System corrupted: Com. Wheel rejected. 05363_ G-47 Trooper destroyed. 05367_ K-01 Serf collects debris. 05371_ K-01 Serf cleans the Nuclear Reactor. 05372_ K-01 Serf collects debris. 05375_ G-47 Trooper destroyed. 05375_ K-01 Serf collects debris. 05379_ Acquired 33 matter. 05387_ K-01 Serf cleans the Nuclear Reactor. 05400_ R-06 Scavenger collects Lgt. EM Pulse Cannon. 05410_ Player 2 attaches Med. Matter Pod. 05411_ ALERT: Construction progress impeded, dispatching reinforcements to local area. 05411_ G-47 Trooper suffers critical hit (Burn). 05411_ G-47 Trooper destroyed. 05412_ M-13 Machinist repairs G-47 Trooper. Map ----- +----------------------------------------------------+ | ?????????????????????????????????????????????????? | | ?????????????????????????????????????????????????? | | ?????????????[???????????????????????????????????? | | ?????????????????????????????????????????????????? | | ?????????????????????????????????????????????????? | | ?????????????????????????????????????????????????? | | ?????????????????????????????????????????????????? | | ?????????????????????????????????????????????????? | | ?????????????????????????????????????????????????? | | ?????????????????????????????????????????????????? | | ?????????????????????????????????????????????????? | | ?????????????????????????????????????????????????? | | ?????????????????????????????????????????????????? | | ????????????????????? ??????????????????????????? | | ????????????????????# ??????????????????????????? | | ????????????????????# ??????????????????????????? | | ????????????????????# #????????????????????????#? | | ????????????????????# #??????????????????????? #? | | ???????????????????## ###????????###########? ?? | | ??????????????###### #????????# #? #? | | ??????????????? [ * %#????????# ! # +? | | ????????????????? % H= #????????# !# ?? | | ???????? # ==%=% #????????# """ """%+[???? | | ???????? + ####### [[% #????????# """ """%#????? | | ???????? # ######## !!########### """ """%#????? | | ???????? # # # #@ + ===#????? | | ???????? # #""" # # # =[%# ?? | | ????????## #""" +%% + ########### ?? | | ?????????# #""" ] #* # """ #?????????# ?? | | ?????????# #""" # # """ #?????????# #? | | ?????????# #""" # # """ "" #?????????# #? | | ?????????# # # # S"" #?????????# #? | | ?????????# #""" # # "" #?????????# #? | | ??######## #""" # ###########?????????# #? | | ??# # #""" # ##################### #? | | ??# # #""" # #? | | ??# # #""" # #? | | ??# / # # T #? | | ??# # ######## " """"" #? | | ??# # #??????# """"""""" ## | | ??######## #??????# """ """ % | | ?????# ######## | | ?????# | | ###??# ########### ## | | #??####+####?????????# ## | | #???# #???????######+##################### | | #???# #???????# #????????########### | | !#???# #???????# #????????# # | | #???# #???????# #????????# + | | #???# #???????# #????????# # | +----------------------------------------------------+ Best States ------------- Heat Dissipation 31 Coolant Potential 65 Energy Generation 16 Energy Capacity 290 Matter Stores 300 Matter Capacity 300 Sight Range 16 Terrain Scan Density 10 Armor Coverage 450 Resistance: TH 15 Evasion (%) 40 Targeting Accuracy 8 Recoil Reduction 2 Matter Filtering 30 Offensive Hacking 20 Trap Extractor Capacity 6 Item Schematics ----------------- Huge Storage Unit | -10/Materials | Hacked Robot Schematics ------------------ None Fabricated ------------ Nothing Alien Tech Used ----------------- None Achievements -------------- None Challenges ------------ None Player 2 | -11 -10 -10 -10 -9 -8 ---------- Run | Jun Mat Min Exi Min Mat Slots Evolved 4 | . . . . 4 . Power . | . . . . . . Propulsion . | . . . . . . Utility 2 | . . . . 2 . Weapon 2 | . . . . 2 . Parts Attached 43 | . 16 . . 4 23 Parts Lost 13 | . 1 . . . 12 Damage Taken 2352 | . 323 112 . . 1917 Core 632 | . 73 42 . . 517 Player 2/Cogmind (%) 84 | . 64 77 . . 91 Absorbed by Shields . | . . . . . . Damage Inflicted 2618 | . 882 187 . 107 1442 Player 2/Cogmind (%) 52 | . 58 63 . 31 53 Combat Hostiles Destroyed 29 | . 11 4 . 2 12 Player 2/Cogmind (%) 61 | . 64 80 . 40 60 Game ------ Seed OmegaEfficiencySpoofer Manual? 0 Play Time 00:51:23 Cumulative 471.2 hours Start 2023.04.08 @ 17:25:04 End 2023.04.10 @ 06:19:18 Sessions 3 Manual Loads 0 Difficulty Rogue Special Mode AFD2020/Player2 Game No. 86 Rogue 79 Adventurer 1 Explorer 6 Win Type - Total 37 Types 11/3/12/1/1/1/6/1/1 Lore% 92 Gallery% 92 Achievement% 83 Wizard Run 0 Options --------- ASCII 0 Keyboard 0 Movement Mouse Keybinds 0 Fullscreen 1 Font 18/SmallcapsGlow Map View 76x50 Tactical HUD 1 Map Filters NONE Filters NONE Steam 1 RUN: 23158aae-b6cc-4d8b-81fa-803bfa1de992